bitfinex-derivatives/quotes_SOLF0:USTF0_20250731
["timestamp","ask_amount","ask_price","bid_price","bid_amount"]
[1753928437311,3.98649433,179.5,179.32,7.0]
[1753928437513,3.98649433,179.49,179.32,7.0]
[1753928437711,3.98649433,179.48,179.32,7.0]
[1753928438012,3.98609133,179.47,179.32,7.0]
[1753928438220,4.68234511,179.51,179.32,7.0]
[1753928438409,3.98587017,179.5,179.32,7.0]
[1753928438610,3.98587017,179.49,179.32,7.0]
[1753928438909,3.98587017,179.48,179.32,7.0]
[1753928439213,3.98587017,179.47,179.32,7.0]
[1753928439414,4.68234511,179.51,179.32,7.0]
[1753928439614,3.98574571,179.5,179.32,7.0]
[1753928439814,3.98574571,179.49,179.32,7.0]
[1753928440017,3.98574571,179.48,179.32,7.0]
[1753928440217,3.98574571,179.47,179.32,7.0]
[1753928440515,4.68234511,179.51,179.32,7.0]
[1753928440715,3.98576411,179.5,179.32,7.0]
[1753928440913,3.98576411,179.49,179.32,7.0]
[1753928441112,3.98576411,179.48,179.32,7.0]
[1753928441315,3.98576411,179.47,179.32,7.0]
[1753928441516,4.68234511,179.51,179.32,7.0]
[1753928441816,3.98580982,179.5,179.32,7.0]
[1753928442019,3.98580982,179.49,179.32,7.0]
[1753928442315,3.98580982,179.48,179.32,7.0]
[1753928442507,3.98580982,179.47,179.32,7.0]
[1753928442708,4.68234511,179.51,179.32,7.0]
[1753928442912,3.98597671,179.5,179.32,7.0]
[1753928443114,3.98597671,179.49,179.32,7.0]
[1753928443322,3.98597671,179.48,179.32,7.0]
[1753928443615,4.68234511,179.56,179.32,16.358411]
[1753928443917,4.68234511,179.6,179.37,9.358411]
[1753928444119,3.98323218,179.59,179.37,7.0]
[1753928444419,3.98323218,179.58,179.38,9.358411]
[1753928444621,4.68234511,179.62,179.38,9.358411]
[1753928444817,3.98067288,179.61,179.38,16.358411]
[1753928445117,3.98067288,179.6,179.38,7.0]
[1753928445313,3.98067288,179.59,179.38,7.0]
[1753928445512,4.68234511,179.63,179.38,16.358411]
[1753928445715,3.97770004,179.62,179.38,16.358411]
[1753928445913,3.97770004,179.61,179.38,16.358411]
[1753928446122,3.97770004,179.6,179.38,7.0]
[1753928446424,3.97770004,179.59,179.38,7.0]
[1753928446623,4.68234511,179.63,179.38,7.0]
[1753928446925,3.9754775,179.62,179.38,7.0]
[1753928447225,3.9754775,179.61,179.38,7.0]
[1753928447419,3.9754775,179.6,179.38,7.0]
[1753928447718,3.9754775,179.59,179.38,7.0]
[1753928447913,4.68234511,179.63,179.38,7.0]
[1753928448119,3.97364736,179.62,179.38,7.0]
[1753928448316,3.97364736,179.61,179.38,7.0]
[1753928448517,3.97364736,179.6,179.38,7.0]
[1753928448717,3.97364736,179.59,179.38,7.0]
[1753928448918,4.68234511,179.63,179.38,7.0]
[1753928449121,3.97214719,179.62,179.38,7.0]
[1753928449324,3.97214719,179.61,179.38,7.0]
[1753928449523,3.97214719,179.6,179.38,7.0]
[1753928449824,3.97214719,179.59,179.38,7.0]
[1753928450023,4.68234511,179.63,179.38,7.0]
[1753928450213,3.97110766,179.62,179.38,7.0]
[1753928450414,3.97110766,179.61,179.38,7.0]
[1753928450615,3.97110766,179.6,179.38,7.0]
[1753928450814,3.97110766,179.59,179.38,7.0]
[1753928451015,4.68234511,179.63,179.38,7.0]
[1753928451217,3.97018434,179.62,179.38,7.0]
[1753928451421,3.97018434,179.61,179.38,7.0]
[1753928451625,3.97018434,179.6,179.38,7.0]
[1753928451925,3.97018434,179.59,179.38,7.0]
[1753928452223,4.68234511,179.63,179.38,7.0]
[1753928452527,3.96889221,179.62,179.38,7.0]
[1753928452722,3.96889221,179.61,179.38,7.0]
[1753928452923,3.96889221,179.6,179.38,7.0]
[1753928453124,3.96889221,179.59,179.38,7.0]
[1753928453324,4.68234511,179.63,179.38,7.0]
[1753928453524,3.96849006,179.62,179.38,7.0]
[1753928453725,3.96849006,179.61,179.38,7.0]
[1753928453928,3.96849006,179.6,179.38,7.0]
[1753928454130,3.96849006,179.59,179.38,7.0]
[1753928454335,4.68234511,179.63,179.38,7.0]
[1753928454522,3.96822462,179.62,179.38,7.0]
[1753928454721,3.96822462,179.61,179.38,7.0]
[1753928455025,3.96822462,179.6,179.38,7.0]
[1753928455225,3.96822462,179.59,179.38,7.0]
[1753928455421,4.68234511,179.63,179.38,7.0]
[1753928455624,4.68234511,179.68,179.4,9.358411]
[1753928455834,3.96688291,179.67,179.42,9.358411]
[1753928456035,4.64292811,179.72,179.43,9.358411]
[1753928456225,7.9992211,179.71,179.43,7.0]
[1753928456531,3.96622634,179.7,179.43,7.0]
[1753928456734,3.96447519,179.69,179.43,7.0]
[1753928456930,3.96447519,179.68,179.43,7.0]
[1753928457130,4.64018166,179.72,179.43,7.0]
[1753928457330,7.99140917,179.71,179.43,7.0]
[1753928457533,3.96260467,179.7,179.43,7.0]
[1753928457728,3.96260467,179.69,179.43,7.0]
[1753928457932,3.96260467,179.68,179.43,7.0]
[1753928458233,12.48481595,179.81,179.43,7.0]
[1753928458234,4.64018166,179.79,179.47,9.358411]
[1753928458426,4.64018166,179.77,179.45,9.358411]
[1753928458626,7.97977307,179.76,179.45,9.358411]
[1753928458826,7.97977307,179.75,179.44,9.358411]
[1753928459027,3.95708833,179.74,179.44,133.80043572]
[1753928459223,3.95708833,179.73,179.44,124.44202472]
[1753928459424,3.95708833,179.72,179.44,133.80043572]
[1753928459633,4.64018166,179.76,179.44,133.80043572]
[1753928459835,7.95054594,179.75,179.44,133.80043572]
[1753928460036,3.9555033,179.74,179.44,133.80043572]
[1753928460237,3.9555033,179.73,179.44,124.44202472]
[1753928460438,3.9555033,179.72,179.44,124.44202472]
[1753928460734,3.9555033,179.71,179.44,7.0]
[1753928461034,3.9555033,179.7,179.44,7.0]
[1753928461334,4.64018166,179.75,179.44,7.0]
[1753928461538,7.95050037,179.74,179.44,7.0]
[1753928461833,7.95050037,179.73,179.44,7.0]
[1753928462034,3.95535848,179.72,179.44,7.0]
[1753928462238,3.95535848,179.71,179.44,7.0]
[1753928462532,3.95535848,179.7,179.44,7.0]
[1753928462734,4.64018166,179.75,179.44,7.0]
[1753928462936,7.94854376,179.74,179.44,7.0]
[1753928463130,7.94854376,179.73,179.44,7.0]
[1753928463333,3.95440283,179.72,179.44,7.0]
[1753928463535,3.95440283,179.71,179.44,7.0]
[1753928463736,3.95440283,179.7,179.44,7.0]
[1753928463940,4.64018166,179.75,179.44,7.0]
[1753928464242,7.94624073,179.74,179.44,7.0]
[1753928464541,3.95325301,179.73,179.44,7.0]
[1753928464737,3.95325301,179.72,179.44,7.0]
[1753928464938,4.64018166,179.76,179.44,7.0]
[1753928465134,7.94481986,179.75,179.44,7.0]
[1753928465337,7.94481986,179.74,179.44,7.0]
[1753928465635,3.95250198,179.73,179.44,7.0]
[1753928465934,3.95250198,179.72,179.44,7.0]
[1753928466129,4.64018166,179.76,179.44,7.0]
[1753928466338,7.94334868,179.75,179.44,7.0]
[1753928466538,3.95112692,179.74,179.44,7.0]
[1753928466733,3.95112692,179.73,179.44,7.0]
[1753928466934,4.64018166,179.77,179.44,7.0]
[1753928467234,7.94190453,179.76,179.44,7.0]
[1753928467434,7.94190453,179.75,179.44,7.0]
[1753928467740,3.95100803,179.74,179.44,7.0]
[1753928468041,3.95100803,179.73,179.44,7.0]
[1753928468241,4.64018166,179.77,179.44,7.0]
[1753928468436,7.94246452,179.76,179.44,7.0]
[1753928468740,7.94246452,179.75,179.44,7.0]
[1753928468935,3.94942134,179.74,179.44,7.0]
[1753928469135,3.94942134,179.73,179.44,7.0]
[1753928469338,4.64018166,179.77,179.44,7.0]
[1753928469537,7.94002086,179.76,179.44,7.0]
[1753928469738,7.94002086,179.75,179.44,7.0]
[1753928469938,3.94870206,179.74,179.44,7.0]
[1753928470138,3.94870206,179.73,179.44,7.0]
[1753928470340,4.64018166,179.77,179.44,7.0]
[1753928470540,7.93912149,179.76,179.44,7.0]
[1753928470739,7.93912149,179.75,179.44,7.0]
[1753928470940,3.94820319,179.74,179.44,7.0]
[1753928471137,3.94820319,179.73,179.44,7.0]
[1753928471343,4.64018166,179.77,179.44,7.0]
[1753928471539,7.93874636,179.76,179.44,7.0]
[1753928471842,7.93874636,179.75,179.44,7.0]
[1753928472045,3.94795757,179.74,179.44,7.0]
[1753928472342,3.94795757,179.73,179.44,7.0]
[1753928472543,4.64018166,179.77,179.44,7.0]
[1753928472740,7.93836425,179.76,179.44,7.0]
[1753928472942,7.93836425,179.75,179.44,7.0]
[1753928473243,3.94772382,179.74,179.44,7.0]
[1753928473444,3.94772382,179.73,179.44,7.0]
[1753928473742,4.64018166,179.77,179.44,7.0]
[1753928473936,7.93853274,179.76,179.44,7.0]
[1753928474145,3.94773948,179.75,179.44,7.0]
[1753928474343,4.64018166,179.77,179.44,7.0]
[1753928474344,3.94773948,179.74,179.44,7.0]
[1753928474545,3.94773948,179.73,179.44,7.0]
[1753928474746,4.64018166,179.78,179.44,7.0]
[1753928475046,7.93901468,179.77,179.44,7.0]
[1753928475249,7.93901468,179.76,179.44,7.0]
[1753928475548,7.93901468,179.75,179.44,7.0]
[1753928475747,3.94792619,179.74,179.44,7.0]
[1753928475940,3.94792619,179.73,179.44,7.0]
[1753928476142,4.64018166,179.77,179.44,7.0]
[1753928476342,7.94179902,179.76,179.44,7.0]
[1753928476547,7.94179902,179.75,179.44,7.0]
[1753928476747,3.9490526,179.74,179.44,7.0]
[1753928476946,3.9490526,179.73,179.44,7.0]
[1753928477143,4.64018166,179.77,179.44,7.0]
[1753928477344,7.94368826,179.76,179.44,7.0]
[1753928477550,7.94368826,179.75,179.44,7.0]
[1753928477748,3.94993136,179.74,179.44,7.0]
[1753928477951,3.94993136,179.73,179.44,7.0]
[1753928478149,4.64018166,179.77,179.44,7.0]
[1753928478350,7.94430718,179.76,179.44,7.0]
[1753928478551,7.94430718,179.75,179.44,7.0]
[1753928478851,3.95057224,179.74,179.44,7.0]
[1753928479049,3.95057224,179.73,179.44,7.0]
[1753928479254,3.95057224,179.72,179.44,7.0]
[1753928479456,4.64018166,179.76,179.44,7.0]
[1753928479655,7.94682826,179.75,179.44,7.0]
[1753928479856,7.94682826,179.74,179.44,7.0]
[1753928480158,3.95131323,179.73,179.44,7.0]
[1753928480358,3.95131323,179.72,179.44,7.0]
[1753928480552,4.64018166,179.77,179.44,7.0]
[1753928480752,7.94797758,179.76,179.44,7.0]
[1753928480959,7.94797758,179.75,179.44,7.0]
[1753928481157,4.64018166,179.77,179.44,7.0]
[1753928481158,3.9518314,179.74,179.44,7.0]
[1753928481360,3.9518314,179.73,179.44,7.0]
[1753928481563,4.64018166,179.77,179.44,7.0]
[1753928481866,7.95025925,179.76,179.44,7.0]
[1753928482162,7.95025925,179.75,179.44,7.0]
[1753928482357,3.95285105,179.74,179.44,7.0]
[1753928482558,3.95285105,179.73,179.44,7.0]
[1753928482758,3.95285105,179.72,179.44,7.0]
[1753928483053,4.64018166,179.77,179.44,7.0]
[1753928483357,12.59571154,179.76,179.44,16.358411]
[1753928483563,7.95552988,179.75,179.44,16.358411]
[1753928483760,7.95552988,179.74,179.44,16.358411]
[1753928484060,3.95635996,179.73,179.44,16.358411]
[1753928484260,4.64018166,179.76,179.45,9.358411]
[1753928484261,3.95635996,179.72,179.45,9.358411]
[1753928484464,4.64018166,179.76,179.45,9.358411]
[1753928484658,7.96400833,179.75,179.45,9.358411]
[1753928484858,4.64018166,179.8,179.48,9.358411]
[1753928485062,15.31810191,179.79,179.48,16.358411]
[1753928485265,15.31810191,179.78,179.49,9.358411]
[1753928485562,7.96276111,179.77,179.49,9.358411]
[1753928485762,3.95842723,179.76,179.49,9.358411]
[1753928485959,3.95842723,179.75,179.49,16.358411]
[1753928486168,4.64018166,179.79,179.49,16.358411]
[1753928486465,7.97496166,179.78,179.49,16.358411]
[1753928486667,7.97496166,179.77,179.49,16.358411]
[1753928486856,3.96379941,179.76,179.49,16.358411]
[1753928487162,3.96379941,179.75,179.5,9.358411]
[1753928487465,3.96379941,179.74,179.5,9.358411]
[1753928487765,4.64018166,179.78,179.5,9.358411]
[1753928487959,4.01485277,179.77,179.5,9.358411]
[1753928488159,7.98457903,179.76,179.51,9.358411]
[1753928488367,3.96972626,179.75,179.51,9.358411]
[1753928488567,3.96972626,179.74,179.51,9.358411]
[1753928488771,3.96972626,179.73,179.51,9.358411]
[1753928488969,4.64018166,179.77,179.51,9.358411]
[1753928489267,4.01451599,179.76,179.51,9.358411]
[1753928489571,3.97399784,179.75,179.51,9.358411]
[1753928489768,3.97399784,179.74,179.51,9.358411]
[1753928490067,3.97399784,179.73,179.51,9.358411]
[1753928490258,4.64018166,179.77,179.51,9.358411]
[1753928490458,4.01587767,179.76,179.51,9.358411]
[1753928490757,3.97561431,179.75,179.51,9.358411]
[1753928490959,3.97561431,179.74,179.51,9.358411]
[1753928491160,3.97561431,179.73,179.52,9.358411]
[1753928491359,4.64018166,179.77,179.52,9.358411]
[1753928491560,4.01644007,179.76,179.52,9.358411]
[1753928491764,3.97640329,179.75,179.52,9.358411]
[1753928491963,3.97640329,179.74,179.52,9.358411]
[1753928492160,3.97640329,179.73,179.52,9.358411]
[1753928492360,4.64018166,179.77,179.52,9.358411]
[1753928492561,4.01741152,179.76,179.52,9.358411]
[1753928492759,3.97738751,179.75,179.52,9.358411]
[1753928492963,3.97738751,179.74,179.52,9.358411]
[1753928493161,3.97738751,179.73,179.52,9.358411]
[1753928493363,4.64018166,179.77,179.52,9.358411]
[1753928493563,4.01859668,179.76,179.52,9.358411]
[1753928493765,3.97858262,179.75,179.52,9.358411]
[1753928493969,3.97858262,179.74,179.53,9.358411]
[1753928494170,3.97969917,179.73,179.53,16.358411]
[1753928494372,4.64018166,179.78,179.53,16.358411]
[1753928494373,4.64018166,179.78,179.54,9.358411]
[1753928494571,4.01926292,179.77,179.54,16.358411]
[1753928494774,3.97939637,179.76,179.54,16.358411]
[1753928494971,6.23798066,179.8,179.54,7.0]
[1753928494972,3.97939637,179.75,179.54,7.0]
[1753928495174,3.97939637,179.74,179.54,7.0]
[1753928495373,3.97939637,179.73,179.54,7.0]
[1753928495573,4.64018166,179.77,179.54,7.0]
[1753928495774,4.0213359,179.76,179.54,7.0]
[1753928496074,3.98138369,179.75,179.54,7.0]
[1753928496275,4.64018166,179.77,179.54,16.358411]
[1753928496276,3.98138369,179.74,179.54,16.358411]
[1753928496474,3.98138369,179.73,179.54,16.358411]
[1753928496674,3.98138369,179.72,179.54,16.358411]
[1753928496873,4.64018166,179.77,179.54,16.358411]
[1753928497074,4.02359159,179.76,179.54,16.358411]
[1753928497275,12.64765651,179.75,179.54,7.0]
[1753928497475,3.9834797,179.74,179.54,7.0]
[1753928497675,3.9834797,179.73,179.54,7.0]
[1753928497875,3.9834797,179.72,179.54,7.0]
[1753928498077,3.9834797,179.71,179.54,7.0]
[1753928498275,4.64018166,179.75,179.54,16.358411]
[1753928498671,12.62572968,179.74,179.54,16.358411]
[1753928498872,12.62644352,179.73,179.54,7.0]
[1753928499074,3.97451384,179.72,179.54,7.0]
[1753928499273,4.64018166,179.72,179.54,7.0]
[1753928499477,3.97451384,179.71,179.54,16.358411]
[1753928499682,3.97451384,179.7,179.54,16.358411]
[1753928499882,3.97451384,179.69,179.54,16.358411]
[1753928500085,4.64018166,179.73,179.54,16.358411]
[1753928500286,6.23798066,179.75,179.55,9.358411]
[1753928500287,8.62406309,179.72,179.55,9.358411]
[1753928500485,3.98388143,179.71,179.55,9.358411]
[1753928500675,3.98388143,179.7,179.55,9.358411]
[1753928500879,3.98388143,179.69,179.55,9.358411]
[1753928501186,4.64018166,179.73,179.56,9.358411]
[1753928501584,8.62517726,179.73,179.56,9.358411]
[1753928501783,3.9849956,179.72,179.56,9.358411]
[1753928501983,3.9849956,179.71,179.56,9.358411]
[1753928502187,3.9849956,179.7,179.56,9.358411]
[1753928502381,3.9849956,179.69,179.56,9.358411]
[1753928502589,4.64018166,179.73,179.57,9.358411]
[1753928503083,4.64018166,179.73,179.57,16.358411]
[1753928503285,3.98595536,179.72,179.57,16.358411]
[1753928503586,3.98595536,179.71,179.57,16.358411]
[1753928503785,3.98595536,179.7,179.57,16.358411]
[1753928503986,4.64018166,179.74,179.57,16.358411]
[1753928506293,4.64018166,179.74,179.58,9.358411]
[1753928510194,8.62598973,179.74,179.58,9.358411]
[1753928510393,3.98580807,179.73,179.58,9.358411]
[1753928510588,3.98580807,179.72,179.58,9.358411]
[1753928510788,3.98580807,179.71,179.58,9.358411]
[1753928511082,3.98580807,179.7,179.58,9.358411]
[1753928511287,4.64018166,179.74,179.58,9.358411]
[1753928511686,8.62889023,179.74,179.58,9.358411]
[1753928511895,3.98870857,179.73,179.58,9.358411]
[1753928512095,3.98870857,179.72,179.58,9.358411]
[1753928512389,3.98870857,179.71,179.58,9.358411]
[1753928512587,3.98870857,179.7,179.58,9.358411]
[1753928512788,4.64018166,179.74,179.58,9.358411]
[1753928513295,4.64018166,179.74,179.59,9.358411]
[1753928513490,8.6290358,179.74,179.59,9.358411]
[1753928513690,3.98885414,179.73,179.59,9.358411]
[1753928513885,3.98885414,179.73,179.57,7.0]
[1753928513886,3.98885414,179.72,179.6,9.358411]
[1753928514088,4.64018166,179.76,179.6,9.358411]
[1753928514292,8.62893578,179.75,179.6,9.358411]
[1753928514500,3.98875412,179.74,179.6,9.358411]
[1753928514791,3.98875412,179.73,179.6,9.358411]
[1753928514994,3.98875412,179.72,179.6,9.358411]
[1753928515295,3.98875412,179.71,179.6,9.358411]
[1753928515495,4.64018166,179.76,179.6,9.358411]
[1753928515887,8.62873993,179.76,179.6,9.358411]
[1753928516088,3.98855827,179.75,179.6,9.358411]
[1753928516293,3.98855827,179.74,179.6,9.358411]
[1753928516486,3.98855827,179.73,179.6,9.358411]
[1753928516686,3.98855827,179.72,179.6,9.358411]
[1753928516895,3.98855827,179.71,179.6,9.358411]
[1753928517094,4.64018166,179.75,179.6,9.358411]
[1753928517898,8.63128127,179.75,179.6,9.358411]
[1753928518197,3.99109961,179.74,179.6,9.358411]
[1753928518397,3.99109961,179.73,179.6,9.358411]
[1753928518597,3.99109961,179.72,179.6,9.358411]
[1753928518799,3.99109961,179.71,179.6,9.358411]
[1753928518994,3.99145795,179.7,179.59,9.358411]
[1753928519197,4.64018166,179.74,179.59,9.358411]
[1753928519899,8.63183718,179.74,179.59,9.358411]
[1753928520101,3.99165552,179.73,179.59,9.358411]
[1753928520303,3.99165552,179.72,179.59,9.358411]
[1753928520501,3.99165552,179.71,179.59,9.358411]
[1753928520695,3.99165552,179.7,179.59,9.358411]
[1753928520896,4.64018166,179.74,179.59,9.358411]
[1753928521401,8.63208432,179.74,179.59,9.358411]
[1753928521599,3.99190266,179.73,179.59,9.358411]
[1753928521799,3.99190266,179.72,179.59,9.358411]
[1753928522099,3.99190266,179.71,179.59,9.358411]
[1753928522303,3.99190266,179.7,179.59,9.358411]
[1753928522490,4.64018166,179.74,179.59,9.358411]
[1753928522895,8.63281327,179.74,179.59,9.358411]
[1753928523096,3.99263161,179.73,179.59,9.358411]
[1753928523301,4.64018166,179.73,179.59,9.358411]
[1753928523501,4.64018166,179.72,179.58,9.358411]
[1753928523701,4.64018166,179.69,179.55,9.358411]
[1753928524001,4.64018166,179.69,179.54,9.358411]
[1753928524198,8.63281327,179.69,179.54,9.358411]
[1753928524400,3.99263161,179.68,179.54,9.358411]
[1753928524596,3.99263161,179.67,179.54,9.358411]
[1753928524794,6.23798066,179.71,179.54,9.358411]
[1753928524795,3.99263161,179.66,179.54,9.358411]
[1753928524993,3.99263161,179.65,179.54,9.358411]
[1753928525199,3.99263161,179.64,179.53,9.358411]
[1753928525405,4.64018166,179.69,179.53,9.358411]
[1753928525598,4.07417471,179.68,179.53,9.358411]
[1753928525799,4.07417471,179.67,179.53,9.358411]
[1753928525998,4.07417471,179.66,179.53,9.358411]
[1753928526300,4.07417471,179.65,179.53,9.358411]
[1753928526498,4.64018166,179.69,179.53,9.358411]
[1753928526904,8.71368062,179.69,179.53,9.358411]
[1753928527198,4.07349896,179.68,179.53,9.358411]
[1753928527403,4.07349896,179.67,179.53,9.358411]
[1753928527604,4.07349896,179.66,179.53,9.358411]
[1753928527804,4.07349896,179.65,179.53,9.358411]
[1753928528005,4.64018166,179.69,179.53,9.358411]
[1753928528508,8.71305544,179.69,179.53,9.358411]
[1753928528807,4.07287378,179.68,179.53,9.358411]
[1753928529100,4.07287378,179.67,179.53,9.358411]
[1753928529306,4.07287378,179.66,179.52,9.358411]
[1753928529607,4.07287378,179.65,179.52,9.358411]
[1753928529809,4.07287378,179.64,179.52,9.358411]
[1753928530107,4.64018166,179.69,179.52,9.358411]
[1753928530605,8.71096521,179.69,179.52,9.358411]
[1753928530804,4.07078355,179.68,179.52,9.358411]
[1753928531005,4.07078355,179.67,179.52,9.358411]
[1753928531198,4.07078355,179.66,179.52,9.358411]
[1753928531403,4.07078355,179.65,179.52,9.358411]
[1753928531604,4.64018166,179.69,179.52,9.358411]
[1753928532104,8.71026153,179.69,179.52,9.358411]
[1753928532309,4.07007987,179.68,179.52,9.358411]
[1753928532509,4.07007987,179.67,179.52,9.358411]
[1753928532708,4.07007987,179.66,179.52,9.358411]
[1753928533007,4.07007987,179.65,179.52,9.358411]
[1753928533207,4.64018166,179.69,179.52,9.358411]
[1753928534210,8.70915216,179.69,179.51,9.358411]
[1753928534415,4.0689705,179.68,179.51,9.358411]
[1753928534606,4.64018166,179.69,179.51,9.358411]
[1753928534607,4.0689705,179.67,179.51,9.358411]
[1753928534810,4.0689705,179.66,179.51,9.358411]
[1753928535010,4.0689705,179.65,179.51,9.358411]
[1753928535211,4.0689705,179.64,179.51,9.358411]
[1753928535411,4.64018166,179.69,179.51,9.358411]
[1753928535819,8.70825965,179.69,179.51,9.358411]
[1753928536020,4.06807799,179.68,179.51,9.358411]
[1753928536320,4.06807799,179.67,179.51,9.358411]
[1753928536618,4.06807799,179.66,179.51,9.358411]
[1753928536819,4.64018166,179.69,179.51,9.358411]
[1753928536820,4.06807799,179.65,179.51,9.358411]
[1753928537020,4.64018166,179.69,179.51,9.358411]
[1753928537525,4.64018166,179.69,179.42,15.52516805]
[1753928537526,4.64018166,179.69,179.52,9.358411]
[1753928537726,4.06764509,179.68,179.52,9.358411]
[1753928537925,4.06764509,179.67,179.52,9.358411]
[1753928538225,4.64018166,179.71,179.52,9.358411]
[1753928538418,4.64018166,179.71,179.53,9.358411]
[1753928540226,8.70715263,179.71,179.53,9.358411]
[1753928540526,4.06697097,179.7,179.53,9.358411]
[1753928540726,4.64018166,179.69,179.52,9.358411]
[1753928540921,8.70715263,179.69,179.51,9.358411]
[1753928541123,4.06697097,179.68,179.51,9.358411]
[1753928541321,4.06697097,179.67,179.51,9.358411]
[1753928541516,4.06697097,179.66,179.51,9.358411]
[1753928541716,4.06697097,179.65,179.51,9.358411]
[1753928541924,4.06697097,179.64,179.51,9.358411]
[1753928542226,4.64018166,179.69,179.51,9.358411]
[1753928543226,4.64018166,179.69,179.52,9.358411]
[1753928544025,4.06770429,179.68,179.52,9.358411]
[1753928544225,4.06770429,179.67,179.52,9.358411]
[1753928544526,4.06770429,179.66,179.52,9.358411]
[1753928544729,4.64018166,179.7,179.52,9.358411]
[1753928545129,4.64018166,179.7,179.53,9.358411]
[1753928545325,4.06687799,179.69,179.53,9.358411]
[1753928545628,4.06687799,179.68,179.53,9.358411]
[1753928545831,4.06687799,179.67,179.53,9.358411]
[1753928546027,4.64018166,179.71,179.53,9.358411]
[1753928546734,8.74868578,179.71,179.53,9.358411]
[1753928547028,4.07126977,179.7,179.53,9.358411]
[1753928547229,4.07126977,179.69,179.53,9.358411]
[1753928547429,4.07126977,179.68,179.53,9.358411]
[1753928547629,4.07126977,179.67,179.53,9.358411]
[1753928547931,4.67741601,179.71,179.53,9.358411]
[1753928548128,4.07134819,179.7,179.53,9.358411]
[1753928548328,4.07134819,179.69,179.53,9.358411]
[1753928548530,4.07134819,179.68,179.53,9.358411]
[1753928548731,4.67741601,179.71,179.53,9.358411]
[1753928548732,4.07134819,179.67,179.53,9.358411]
[1753928548921,4.67741601,179.71,179.53,9.358411]
[1753928549127,4.07144455,179.7,179.53,9.358411]
[1753928549329,4.07144455,179.69,179.53,9.358411]
[1753928549629,4.07144455,179.68,179.53,9.358411]
[1753928549830,4.07144455,179.67,179.53,9.358411]
[1753928550033,4.07144455,179.66,179.52,9.358411]
[1753928550235,4.67741601,179.7,179.52,9.358411]
[1753928550527,8.74920134,179.69,179.52,9.358411]
[1753928550731,4.07178533,179.68,179.52,9.358411]
[1753928550926,4.07178533,179.67,179.52,9.358411]
[1753928551126,4.07178533,179.66,179.52,9.358411]
[1753928551326,4.07178533,179.65,179.52,9.358411]
[1753928551536,4.67741601,179.7,179.52,9.358411]
[1753928552034,8.74938019,179.7,179.52,9.358411]
[1753928552230,4.07196418,179.69,179.52,9.358411]
[1753928552531,4.07196418,179.68,179.52,9.358411]
[1753928552732,4.07196418,179.67,179.52,9.358411]
[1753928552925,4.07196418,179.66,179.52,9.358411]
[1753928553131,4.07196418,179.65,179.52,9.358411]
[1753928553333,4.67741601,179.7,179.52,9.358411]
[1753928553834,8.74962251,179.7,179.52,9.358411]
[1753928554032,4.0722065,179.69,179.52,9.358411]
[1753928554334,4.0722065,179.68,179.52,9.358411]
[1753928554635,4.0722065,179.67,179.52,9.358411]
[1753928554933,4.0722065,179.66,179.52,9.358411]
[1753928555233,4.0722065,179.65,179.52,9.358411]
[1753928555434,4.67741601,179.7,179.52,9.358411]
[1753928555936,8.74997666,179.7,179.52,9.358411]
[1753928556134,8.74997666,179.69,179.52,9.358411]
[1753928556332,4.07256065,179.68,179.52,9.358411]
[1753928556531,4.07256065,179.67,179.52,9.358411]
[1753928556731,4.07256065,179.66,179.52,9.358411]
[1753928556931,4.07256065,179.65,179.52,9.358411]
[1753928557128,4.67741601,179.69,179.52,9.358411]
[1753928557329,8.75059069,179.68,179.51,9.358411]
[1753928557530,4.07317468,179.67,179.51,9.358411]
[1753928557733,4.07317468,179.66,179.51,9.358411]
[1753928557932,4.07317468,179.65,179.51,9.358411]
[1753928558227,4.07317468,179.64,179.51,9.358411]
[1753928558434,4.67741601,179.68,179.51,9.358411]
[1753928560131,4.67741601,179.69,179.52,9.358411]
[1753928560332,8.75077778,179.69,179.53,9.358411]
[1753928560533,4.07336177,179.68,179.53,9.358411]
[1753928560832,4.07336177,179.67,179.53,9.358411]